bitfinex/quotes_ETHUSD_20250220
["timestamp","ask_amount","ask_price","bid_price","bid_amount"]
[1740071159256,3.67001,2724.8,2724.4,4.47763964]
[1740071159411,3.67001,2724.8,2724.5,0.44776396]
[1740071159607,3.67001,2724.8,2724.2,4.40093639]
[1740071159910,4.47539,2724.5,2724.2,0.277]
[1740071160554,0.7671,2724.7,2724.2,0.277]
[1740071160723,0.7671,2724.7,2724.3,3.6706]
[1740071161129,0.7671,2724.7,2724.3,7.34119]
[1740071161323,0.7671,2724.7,2724.3,3.67059]
[1740071161737,4.43729,2724.7,2724.1,3.67083]
[1740071161942,0.9270189,2724.9,2724.5,3.67026]
[1740071162148,0.9270189,2724.9,2724.6,3.67025]
[1740071162329,0.1506189,2724.9,2724.7,3.70669965]
[1740071162654,0.1506189,2724.9,2724.8,4.04065997]
[1740071162953,0.1506189,2724.9,2724.8,0.37066997]
[1740071163287,4.44148,2724.8,2724.6,0.74352802]
[1740071163578,3.67018,2724.7,2724.3,0.277]
[1740071163786,3.67039,2724.6,2724.3,0.277]
[1740071164077,3.67052,2724.5,2724.0,1.80883188]
[1740071164249,3.67049,2724.5,2724.0,1.80883188]
[1740071164463,3.6705,2724.5,2724.0,1.80883188]
[1740071164978,3.67026,2724.6,2724.1,3.67092]
[1740071165476,0.1506189,2724.9,2724.4,3.67043]
[1740071165637,0.1506189,2724.9,2724.6,3.67025]
[1740071165842,0.1506189,2724.9,2724.4,0.81902978]
[1740071166076,0.1506189,2724.9,2724.3,0.8125]
[1740071166261,0.1506189,2724.9,2724.5,3.67028]
[1740071166641,0.1506189,2724.9,2724.6,3.67023]
[1740071167141,0.1506189,2724.9,2724.4,3.6704]
[1740071167342,3.8205489,2724.9,2724.5,0.7174957]
[1740071167581,3.66999,2724.8,2724.3,0.8125]
[1740071167784,3.66999,2724.8,2724.5,0.18375576]
[1740071168085,0.1506189,2724.9,2724.5,3.85412576]
[1740071168442,0.1506189,2724.9,2724.7,3.67006]
[1740071168653,0.1506189,2724.9,2724.7,3.67005]
[1740071168852,0.1506189,2724.9,2724.8,4.806895]
[1740071169184,0.1506189,2724.9,2724.8,5.083895]
[1740071169390,0.1506189,2724.9,2724.8,5.12058823]
[1740071170083,0.1506189,2724.9,2724.8,5.083895]
[1740071170461,0.1506189,2724.9,2724.8,5.26755235]
[1740071170655,0.1506189,2724.9,2724.8,5.30424396]
[1740071171579,0.1506189,2724.9,2724.8,5.26755235]
[1740071174112,0.1506189,2724.9,2724.8,0.82766235]
[1740071174523,0.1506189,2724.9,2724.8,4.53434794]
[1740071174819,3.8204689,2724.9,2724.8,0.18365735]
[1740071174986,0.9321189,2724.9,2724.8,0.18365735]
[1740071175197,0.1506189,2724.9,2724.8,0.18365735]
[1740071175503,0.1506189,2724.9,2724.8,3.85364735]
[1740071175720,0.1506189,2724.9,2724.8,5.51178509]
[1740071175880,0.1506189,2724.9,2724.8,1.84179509]
[1740071176219,0.1506189,2724.9,2724.8,1.65813774]
[1740071176422,0.1506189,2724.9,2724.6,8.246]
[1740071176579,3.66999,2724.8,2724.6,8.246]
[1740071176774,0.9266189,2724.9,2724.6,8.246]
[1740071177021,4.5965489,2724.9,2724.6,8.246]
[1740071177221,0.9266189,2724.9,2724.6,8.246]
[1740071177611,3.67007,2724.8,2724.6,8.246]
[1740071177812,3.67006,2724.8,2724.6,8.246]
[1740071178013,3.67012,2724.7,2724.6,8.246]
[1740071178411,4.43522,2724.7,2724.6,8.246]
[1740071179527,4.5995589,2724.9,2724.6,8.246]
[1740071179721,3.67007,2724.8,2724.6,8.246]
[1740071180022,3.67012,2724.7,2724.6,8.246]
[1740071180229,4.5995389,2724.9,2724.6,8.246]
[1740071180410,0.1506189,2724.9,2724.6,11.91626]
[1740071180609,0.1506189,2724.9,2724.7,1.273456]
[1740071180784,0.1506189,2724.9,2724.6,3.7069592]
[1740071180984,0.1506189,2724.9,2724.6,7.34045]
[1740071181324,0.1506189,2724.9,2724.5,0.8183]
[1740071181325,0.1506189,2724.9,2724.5,4.48862]
[1740071181487,0.1506189,2724.9,2724.6,0.73097706]
[1740071181882,3.67005,2724.8,2724.3,4.45727]
[1740071182100,0.1506189,2724.9,2724.3,4.930697]
[1740071182429,0.1506189,2724.9,2724.4,4.40072581]
[1740071182628,3.8204889,2724.9,2724.4,0.55]
[1740071182929,3.67007,2724.8,2724.4,0.55]
[1740071183257,3.8204789,2724.9,2724.4,4.2205]
[1740071183429,0.1506189,2724.9,2724.5,0.84370386]
[1740071183635,0.1506189,2724.9,2724.4,4.22051]
[1740071184227,0.1506189,2724.9,2724.7,3.67002]
[1740071184436,0.1506189,2724.9,2724.8,0.03669922]
[1740071184588,0.1506189,2724.9,2724.7,3.67002]
[1740071184789,0.1506189,2724.9,2724.8,3.66999]
[1740071185489,0.1506189,2724.9,2724.8,5.75756979]
[1740071186717,0.1506189,2724.9,2724.8,5.79426277]
[1740071187034,0.1506189,2724.9,2724.8,5.94058918]
[1740071188108,0.1506189,2724.9,2724.8,5.97728214]
[1740071188697,0.1506189,2724.9,2724.8,5.94058918]
[1740071189221,0.1506189,2724.9,2724.8,6.7172484]
[1740071189651,0.1506189,2724.9,2724.8,6.6805569]
[1740071189851,0.1506189,2724.9,2724.8,6.71724836]
[1740071190469,0.1506189,2724.9,2724.8,6.6805569]
[1740071191047,0.1506189,2724.9,2724.8,6.71724828]
[1740071191245,0.1506189,2724.9,2724.8,6.6805569]
[1740071193852,0.1506189,2724.9,2724.8,6.71724874]
[1740071194057,0.1506189,2724.9,2724.8,6.6805569]
[1740071199076,8.9e-06,2724.9,2724.8,9.6805569]
[1740071199882,8.9e-06,2724.9,2724.8,17.9245569]
[1740071205405,8.9e-06,2724.9,2724.8,14.9245569]
[1740071205607,8.9e-06,2724.9,2724.8,14.1246569]
[1740071205904,8.9e-06,2724.9,2724.8,13.8516569]
[1740071206110,8.9e-06,2724.9,2724.8,9.16698711]
[1740071206278,0.7507089,2724.9,2724.8,8.42701939]
[1740071207407,0.7507089,2724.9,2724.8,8.244]
[1740071207970,4.4205589,2724.9,2724.8,8.244]
[1740071208184,0.7507089,2724.9,2724.8,8.244]
[1740071209192,4.4205589,2724.9,2724.8,8.244]
[1740071209401,0.7507089,2724.9,2724.5,4.3970892]
[1740071209565,8.9e-06,2724.9,2724.8,3.66999]
[1740071209760,8.9e-06,2724.9,2724.8,4.21999]
[1740071210205,8.9e-06,2724.9,2724.8,4.25668298]
[1740071210774,8.9e-06,2724.9,2724.8,4.69448809]
[1740071210981,8.9e-06,2724.9,2724.8,5.6071679]
[1740071212210,8.9e-06,2724.9,2724.8,5.64386111]
[1740071212372,8.9e-06,2724.9,2724.8,5.35185486]
[1740071212773,8.9e-06,2724.9,2724.8,5.31516165]
[1740071212998,8.9e-06,2724.9,2724.8,5.35185226]
[1740071214319,8.9e-06,2724.9,2724.8,5.31516165]
[1740071215012,8.9e-06,2724.9,2724.8,5.35185212]
[1740071215625,8.9e-06,2724.9,2724.8,5.6441617]
[1740071217016,6.0077,2725.4,2725.3,3.66932]
[1740071217192,0.7577,2725.7,2725.3,3.66921]
[1740071217388,0.7577,2725.7,2725.3,3.66931]
[1740071218197,4.42648,2725.7,2725.3,3.66931]
[1740071218521,3.66891,2725.6,2725.2,3.94644]
[1740071219097,0.7577,2725.7,2725.3,0.73671332]
[1740071219415,4.4266,2725.7,2725.3,0.73671332]
[1740071219619,0.7577,2725.7,2725.3,0.24171332]
[1740071220130,0.7577,2725.7,2725.4,3.66907]
[1740071220481,0.7577,2725.7,2725.6,3.66891]
[1740071220686,0.8065,2726.0,2725.8,3.66852]
[1740071221186,0.8065,2726.0,2725.7,3.66877]
[1740071221383,0.8065,2726.0,2725.8,3.66854]
[1740071221717,0.8065,2726.0,2725.7,3.66878]
[1740071222041,0.8065,2726.0,2725.6,7.33766]
[1740071222331,0.8065,2726.0,2725.7,0.71724299]
[1740071223127,4.47495,2726.0,2725.5,4.51099191]
[1740071223316,0.8065,2726.0,2725.6,3.66887]
[1740071225130,2.12695028,2726.0,2725.5,0.73708069]
[1740071225286,3.66857,2725.9,2725.5,0.73708069]
[1740071225702,3.66865,2725.8,2725.4,3.66911]
[1740071225911,0.7812,2725.7,2725.3,3.9463]
[1740071226391,0.7812,2725.7,2725.4,4.41918183]
[1740071226610,4.45005,2725.7,2725.4,0.75000183]
[1740071226983,0.7812,2725.7,2725.4,0.75000183]
[1740071227959,0.7812,2725.7,2725.5,3.66903]
[1740071228456,0.7812,2725.7,2725.6,3.66891]
[1740071228762,5.25,2726.1,2725.8,3.66864]
[1740071229058,6.0697,2726.1,2725.9,3.66845]
[1740071229757,6.0697,2726.1,2725.9,3.66842]
[1740071229962,6.0697,2726.1,2726.0,3.66837]
[1740071230258,0.7919,2726.3,2726.1,3.66817]
[1740071230648,0.7919,2726.3,2726.0,3.66833]
[1740071231533,0.7919,2726.3,2725.9,4.2185]
[1740071231862,0.7919,2726.3,2726.0,0.74941692]
[1740071232964,0.7919,2726.3,2726.1,3.66824]
[1740071233121,0.7919,2726.3,2726.0,4.45446628]
[1740071233461,0.7919,2726.3,2726.0,4.41778692]
[1740071234058,0.7919,2726.3,2726.0,4.41771692]
[1740071234254,0.7919,2726.3,2726.0,0.74941692]
[1740071234632,0.7919,2726.3,2726.0,4.41778692]
[1740071234822,0.7919,2726.3,2726.0,4.45446628]
[1740071235024,0.7919,2726.3,2726.0,4.45440628]
[1740071235376,0.7919,2726.3,2726.1,3.66823]
[1740071235959,0.7919,2726.3,2726.0,4.41778692]
[1740071236561,0.7919,2726.3,2726.0,4.41768692]
[1740071237067,0.7919,2726.3,2726.0,4.45436629]
[1740071237247,0.7595,2726.5,2726.1,0.55]
[1740071237435,0.7595,2726.5,2726.1,4.21823]
[1740071237640,0.7595,2726.5,2726.1,4.49523]
[1740071238363,4.42721,2726.5,2726.1,4.49523]
[1740071238540,0.7595,2726.5,2726.1,4.49523]
[1740071239253,0.7595,2726.5,2726.1,8.16346]
[1740071239670,0.7595,2726.5,2726.1,4.49523]
[1740071239866,0.7595,2726.5,2726.2,3.6681]
[1740071240470,4.42729,2726.5,2726.1,0.277]
[1740071240631,0.7595,2726.5,2726.1,3.94524]
[1740071241129,4.42728,2726.5,2726.1,0.277]
[1740071241357,0.7595,2726.5,2726.2,3.66809]
[1740071241551,0.7595,2726.5,2726.3,3.66796]
[1740071241758,0.7595,2726.5,2726.4,3.66784]
[1740071242076,3.66758,2726.6,2726.2,0.277]
[1740071242378,7.14734277,2726.6,2726.2,3.94507]
[1740071242950,7.14734277,2726.6,2726.2,0.277]
[1740071243631,7.14734277,2726.6,2726.2,3.94508]
[1740071244375,7.14734277,2726.6,2726.2,0.277]
[1740071244572,7.14734277,2726.6,2726.2,3.94509]
[1740071244875,3.47976277,2726.6,2726.2,4.78137769]
[1740071245168,3.47976277,2726.6,2726.3,3.66796]
[1740071245374,3.47976277,2726.6,2726.5,3.6677]
[1740071245548,3.47976277,2726.6,2726.3,3.66786]
[1740071246573,7.14735277,2726.6,2726.2,3.94504]
[1740071247259,3.47976277,2726.6,2726.2,3.94504]
[1740071247946,7.14733277,2726.6,2726.2,3.94504]
[1740071248171,3.47976277,2726.6,2726.3,3.66794]
[1740071248670,3.47976277,2726.6,2726.2,3.94503]
[1740071249469,7.14734277,2726.6,2726.2,3.94503]
[1740071249682,7.14734277,2726.6,2726.2,0.277]
[1740071250244,7.14734277,2726.6,2726.2,3.94504]
[1740071250440,3.66774,2726.5,2726.2,0.277]
[1740071250660,0.8188,2726.4,2726.2,0.277]
[1740071251849,5.25,2726.5,2726.2,3.94501]
[1740071252185,5.25,2726.5,2726.2,0.277]
[1740071253174,5.25,2726.5,2726.0,4.41777692]
[1740071253401,0.7992,2726.4,2726.1,3.66824]
[1740071254368,0.7992,2726.4,2726.0,4.69473692]
[1740071254770,0.7992,2726.4,2726.1,3.66822]
[1740071255463,0.7992,2726.4,2726.1,3.85076918]
[1740071255672,5.25,2726.5,2726.4,3.66784]
[1740071256050,5.25,2726.5,2726.2,4.15581861]
[1740071256502,5.25,2726.5,2726.1,0.756]
[1740071256668,5.25,2726.5,2726.2,3.66809]
[1740071256870,7.90363277,2726.6,2726.2,3.66809]
[1740071257455,4.23606277,2726.6,2726.2,3.66809]
[1740071257879,4.23606277,2726.6,2726.1,3.66815]
[1740071258198,3.66771,2726.5,2726.3,0.18269973]
[1740071258601,3.66784,2726.4,2726.3,0.18269973]
[1740071258969,3.66771,2726.5,2726.3,0.18269973]
[1740071259293,3.6677,2726.5,2726.3,0.18269973]
[1740071259497,3.66784,2726.4,2726.3,0.18269973]
[1740071259959,3.66784,2726.4,2726.0,1.02541692]
[1740071260500,3.66784,2726.4,2726.0,4.69374692]
[1740071261552,3.66784,2726.4,2726.1,0.18428527]
[1740071262894,3.66784,2726.4,2726.2,0.18428527]
[1740071263556,7.14773277,2726.3,2726.2,0.18428527]
[1740071263757,7.97493277,2726.3,2726.2,0.18428527]
[1740071266106,7.97493277,2726.3,2725.8,0.73930704]
[1740071266303,3.66839,2726.0,2725.8,0.73930704]
[1740071266477,3.66825,2726.1,2725.8,0.73930704]
[1740071266978,3.66817,2726.2,2725.8,0.73930704]
[1740071267475,3.66817,2726.2,2725.9,0.18427699]
[1740071268401,3.66829,2726.1,2725.9,0.18427699]
[1740071268915,3.66837,2726.0,2725.9,0.18427699]
[1740071269086,7.95873277,2726.0,2725.7,1.0345133]
[1740071269910,3.6686,2725.9,2725.7,1.0345133]
[1740071270116,4.29036277,2726.0,2725.7,0.294839]
[1740071270274,3.66864,2725.8,2725.7,0.294839]
[1740071270613,3.66864,2725.8,2725.6,8.241]
[1740071271570,0.7871,2725.7,2725.6,8.241]
[1740071271769,6.0371,2725.7,2725.6,8.241]
[1740071271969,9.70588,2725.7,2725.6,8.241]
[1740071272228,6.0371,2725.7,2725.6,8.42509692]
[1740071273404,5.25,2725.7,2725.6,8.42509692]
[1740071273819,5.25,2725.7,2725.6,8.241]
[1740071274808,5.25,2725.7,2725.6,11.90991]
[1740071275215,5.25,2725.7,2725.6,13.544216]
[1740071277511,0.7589,2726.1,2725.6,10.05925477]
[1740071277711,0.7589,2726.1,2725.7,3.66876]
[1740071278308,4.4272,2726.1,2725.6,12.09385877]
[1740071279348,3.66838,2726.0,2725.6,12.63701443]
[1740071279554,0.7856,2725.9,2725.6,8.96810443]
[1740071279850,1.57897428,2725.9,2725.6,8.241]
[1740071280048,4.45417,2725.9,2725.6,8.241]
[1740071280257,3.66865,2725.8,2725.6,8.97669922]
[1740071280460,3.66878,2725.7,2725.6,8.241]
[1740071280755,0.8253,2725.7,2725.6,8.241]
[1740071281045,0.7602,2725.9,2725.6,11.90991]
[1740071281453,0.7602,2725.9,2725.6,3.66891]
[1740071281947,0.7602,2725.9,2725.4,4.4456]
[1740071282248,0.7602,2725.9,2725.5,3.66905]
[1740071282611,0.7602,2725.9,2725.5,3.66898]
[1740071283131,4.42872,2725.9,2725.5,3.66898]
[1740071283335,0.7602,2725.9,2725.5,3.66898]
[1740071283589,6.0102,2725.9,2725.5,3.66898]
[1740071283885,6.0102,2725.9,2725.7,3.66871]
[1740071284093,6.0102,2725.9,2725.5,3.66894]
[1740071284276,6.0102,2725.9,2725.6,3.66889]
[1740071285679,6.0102,2725.9,2725.4,4.44559]
[1740071285878,6.0102,2725.9,2725.6,3.66885]
[1740071286658,6.0102,2725.9,2725.5,3.66897]
[1740071287994,6.0102,2725.9,2725.4,4.44556]
[1740071288296,6.0102,2725.9,2725.5,3.66905]
[1740071288466,6.0102,2725.9,2725.6,3.66879]
[1740071288660,6.0102,2725.9,2725.7,3.66872]
[1740071289056,5.25,2725.9,2725.8,3.66864]
[1740071289252,5.25,2725.9,2725.8,4.42254]
[1740071289487,6.0302,2726.4,2726.1,3.66814]
[1740071289751,6.0302,2726.4,2726.3,3.66797]
[1740071289957,5.25,2726.4,2726.2,3.6681]
[1740071290194,5.25,2726.4,2726.0,3.66827]
[1740071290402,5.25,2726.4,2726.0,0.442217]
[1740071290551,5.25,2726.4,2726.1,3.66814]
[1740071290956,0.7802,2726.3,2725.9,3.66841]
[1740071291198,4.44817,2726.3,2725.9,3.66841]
[1740071291400,0.7802,2726.3,2725.9,3.66841]
[1740071291642,0.7802,2726.3,2726.0,0.18429736]
[1740071292998,4.44817,2726.3,2726.0,0.18429736]
[1740071293205,6.13274028,2726.3,2726.0,0.18429736]
[1740071293405,3.47976277,2726.2,2725.8,3.66863]
[1740071293913,3.47976277,2726.2,2725.9,3.66847]
[1740071294129,3.47976277,2726.2,2725.8,3.66863]
[1740071294333,0.7802,2726.3,2725.9,3.66843]
[1740071295162,4.44819,2726.3,2725.9,3.66843]
[1740071295515,0.7802,2726.3,2726.0,3.6683]
[1740071295716,0.7802,2726.3,2725.9,3.66844]
[1740071296130,4.44819,2726.3,2725.9,3.66844]
[1740071296451,4.44819,2726.3,2725.8,3.66857]
[1740071296643,4.44819,2726.3,2725.7,4.39873695]
[1740071296644,7.14797277,2726.2,2725.7,8.06745695]
[1740071296840,7.14797277,2726.2,2725.7,4.39873695]
[1740071297157,3.66824,2726.1,2726.0,0.18431159]
[1740071297364,4.45884,2726.1,2726.0,0.18431159]
[1740071297649,3.6684,2726.0,2725.7,0.73006695]
[1740071297823,4.4589,2726.1,2725.7,0.73006695]
[1740071298219,4.4589,2726.1,2725.7,4.39883695]
[1740071298645,4.4589,2726.1,2725.7,0.73006695]
[1740071299167,8.12721,2726.1,2725.7,0.73006695]
[1740071299338,4.4589,2726.1,2725.7,0.73006695]
[1740071299929,8.12726,2726.1,2725.7,0.73006695]
[1740071300133,4.4589,2726.1,2725.7,0.73006695]
[1740071300353,8.12723,2726.1,2725.7,0.73006695]
[1740071300656,4.4589,2726.1,2725.7,0.73006695]
[1740071300846,4.4589,2726.1,2725.7,4.39882695]
[1740071301157,8.12727,2726.1,2725.7,0.73006695]
[1740071301321,9.7089,2726.1,2725.7,0.73006695]
[1740071301814,13.37723,2726.1,2725.7,0.73006695]
[1740071302018,11.39459928,2726.1,2725.7,0.73006695]
[1740071302326,3.66843,2726.0,2725.5,8.242]
[1740071302528,3.6687,2725.8,2725.5,8.242]
[1740071302942,8.9187,2725.8,2725.5,8.242]
[1740071303154,7.94107277,2725.6,2725.5,8.242]
[1740071303343,9.63070688,2725.6,2725.5,8.242]
[1740071303555,4.46188,2725.2,2724.7,3.67012]
[1740071303759,9.71188,2725.2,2724.5,8.16449]
[1740071303959,9.71188,2725.2,2724.6,3.67017]
[1740071304165,11.03101428,2725.2,2724.7,4.4225088]
[1740071304676,3.66972,2725.0,2724.7,0.7524188]
[1740071304860,3.8006,2724.9,2724.2,8.242]
[1740071305173,3.47976277,2724.5,2724.2,8.242]
[1740071305579,3.0,2724.9,2724.3,0.7912]
[1740071305741,6.0506,2725.0,2724.8,3.66987]
[1740071305949,5.25,2725.0,2724.9,3.66985]
[1740071306268,5.25,2725.0,2724.3,0.82789902]
[1740071306269,3.66995,2724.9,2724.3,0.7912]
[1740071306467,7.14971277,2724.9,2724.4,3.67053]
[1740071306766,7.14971277,2724.9,2724.4,3.67044]
[1740071307070,7.14258324,2724.9,2724.4,3.67044]
[1740071307269,3.47263324,2724.9,2724.5,3.67037]
[1740071308042,0.8255,2725.0,2724.3,0.7912]
[1740071308243,0.8255,2725.0,2724.6,0.73572375]
[1740071308470,0.8255,2725.0,2724.6,4.40596375]
[1740071309134,4.49526,2725.0,2724.6,0.73572375]
[1740071309482,0.8255,2725.0,2724.6,0.73572375]
[1740071310351,9.74523,2725.0,2724.6,0.73572375]
[1740071310552,6.0755,2725.0,2724.6,0.73572375]
[1740071310874,6.0755,2725.0,2724.6,4.40598375]
[1740071311032,9.74523,2725.0,2724.6,0.73572375]
[1740071311370,9.74523,2725.0,2724.6,4.40597375]
[1740071311677,6.0755,2725.0,2724.6,4.40597375]
[1740071311987,9.74522,2725.0,2724.6,0.73572375]
[1740071312276,9.74522,2725.0,2724.5,3.67032]
[1740071312779,13.41503,2725.0,2724.5,3.67032]
[1740071312978,9.74522,2725.0,2724.5,3.67032]
[1740071313279,9.74522,2725.0,2724.5,4.390021]
[1740071313861,3.66987,2724.9,2724.5,4.390021]
[1740071314068,3.66987,2724.9,2724.4,4.70027631]
[1740071314282,3.67003,2724.8,2724.3,4.46176]
[1740071314452,4.48954,2724.7,2724.3,3.67056]
[1740071314643,4.48954,2724.7,2724.2,12.66360213]
[1740071314849,8.15975,2724.7,2724.2,12.66360213]
[1740071315051,4.48954,2724.7,2724.2,12.66360213]
[1740071315476,4.48954,2724.7,2724.3,3.67062]
[1740071315779,4.48954,2724.7,2724.2,8.99282213]
[1740071315982,4.48954,2724.7,2724.3,3.67061]
[1740071316184,6.0694,2724.7,2724.3,3.67061]
[1740071317048,6.0694,2724.7,2724.3,3.67058]
[1740071317459,6.0694,2724.7,2724.4,3.6704]
[1740071317660,5.25,2724.7,2724.5,3.67029]
[1740071317993,5.25,2724.7,2724.6,3.67026]
[1740071318448,5.25,2724.7,2724.4,3.67046]
[1740071319386,5.25,2724.7,2724.5,3.67029]
[1740071319948,5.25,2724.7,2724.4,4.11253821]
[1740071320148,5.25,2724.7,2724.5,3.67038]
[1740071320350,5.25,2724.7,2724.4,0.44212821]
[1740071320560,5.25,2724.7,2724.3,3.67064]
[1740071322096,3.67,2724.8,2724.3,3.67064]
[1740071322601,3.67,2724.8,2724.2,4.42161213]
[1740071322794,3.67,2724.8,2724.3,3.67056]
[1740071322999,7.34009,2724.8,2724.3,3.67056]
[1740071323162,3.67,2724.8,2724.3,3.67056]
[1740071323498,7.34007,2724.8,2724.3,3.67056]
[1740071323655,7.34012,2724.8,2724.3,3.67056]
[1740071323860,3.67,2724.8,2724.3,3.67056]
[1740071324487,6.0153,2724.9,2724.3,3.67056]
[1740071324808,3.67005,2724.8,2724.4,3.67052]
[1740071325018,3.67005,2724.8,2724.2,4.42161213]
[1740071325019,3.67019,2724.7,2724.2,4.42161213]
[1740071325305,3.67028,2724.6,2724.2,0.75082213]
[1740071325669,8.92019,2724.7,2724.2,4.42161213]
[1740071325867,5.25,2724.7,2724.2,4.42154213]
[1740071326099,5.25,2724.7,2724.3,3.6706]
[1740071326302,3.67028,2724.6,2724.2,4.42160213]
[1740071326607,8.9202,2724.7,2724.2,4.42160213]
[1740071327207,3.67033,2724.6,2724.2,4.42160213]
[1740071327704,8.92014,2724.7,2724.2,0.75082213]
[1740071327865,5.25,2724.7,2724.3,3.67065]
[1740071328061,8.92017,2724.7,2724.2,4.42162213]
[1740071328408,8.92017,2724.7,2724.2,8.09235213]
[1740071328638,8.92017,2724.7,2724.2,4.42154213]
[1740071329105,3.67032,2724.6,2724.2,4.42154213]
[1740071329908,8.92017,2724.7,2724.3,3.67066]
[1740071330110,3.67027,2724.6,2724.2,0.75082213]
[1740071330416,0.8286,2724.5,2724.2,0.75082213]
[1740071330970,0.8286,2724.5,2724.3,0.18156132]
[1740071331915,3.67053,2724.4,2724.3,0.18156132]
[1740071332632,13.15676073,2724.4,2724.3,0.18156132]
[1740071332933,3.67073,2724.3,2724.0,0.29051752]
[1740071333088,3.67086,2724.2,2724.0,0.29051752]
[1740071333290,7.34176,2724.2,2724.0,0.29051752]
[1740071333594,3.67086,2724.2,2724.0,0.29051752]
[1740071335024,3.67086,2724.2,2724.1,0.18193193]
[1740071335530,5.57062821,2724.2,2724.1,0.18193193]
[1740071336928,3.67106,2724.1,2723.7,0.18193193]
[1740071337222,3.67109,2724.0,2723.7,0.18193193]
[1740071337915,7.34228,2724.0,2723.7,0.18193193]
[1740071338228,8.92109,2724.0,2723.7,0.18193193]
[1740071338387,4.563439,2723.9,2723.4,4.48387]
[1740071338589,3.67135,2723.8,2723.4,4.48387]
[1740071339206,8.92109,2724.0,2723.4,4.48387]
[1740071339533,3.67123,2723.9,2723.5,4.41269757]
[1740071339896,3.67123,2723.9,2723.5,0.74097757]
[1740071340099,3.67134,2723.8,2723.5,0.74097757]
[1740071340495,3.67139,2723.8,2723.5,0.74097757]
[1740071340832,3.6712,2723.9,2723.5,0.74097757]
[1740071341147,7.34251,2723.9,2723.5,0.74097757]
[1740071341344,8.92107,2724.0,2723.5,4.41265757]
[1740071341543,8.9211,2724.0,2723.5,4.41261757]
[1740071341831,8.92107,2724.0,2723.6,3.67155]
[1740071342040,3.67121,2723.9,2723.5,4.41270757]
[1740071342804,5.25,2724.0,2723.5,0.77769257]
[1740071343008,5.25,2724.0,2723.5,4.41269757]
[1740071343240,6.218403,2724.0,2723.5,4.41269757]
[1740071343900,3.67121,2723.9,2723.5,4.41269757]
[1740071344123,5.25,2724.0,2723.4,0.812]
[1740071344329,3.67142,2723.8,2723.4,0.812]
[1740071344928,3.67163,2723.6,2723.4,0.812]
[1740071345312,3.67128,2723.9,2723.4,0.812]
[1740071345512,3.67149,2723.7,2723.4,0.812]
[1740071345918,3.67161,2723.6,2723.4,0.812]
[1740071346300,3.67148,2723.7,2723.4,0.812]
[1740071347628,3.67135,2723.8,2723.4,0.812]
[1740071347955,3.67154,2723.7,2723.4,0.812]
[1740071348259,3.47295,2723.8,2723.4,0.812]
[1740071348420,5.25,2724.0,2723.4,0.812]
[1740071348617,3.67153,2723.7,2723.4,0.812]
[1740071352535,3.67129,2723.9,2723.4,4.48387]
[1740071352716,3.67148,2723.7,2723.4,0.812]
[1740071355556,3.67135,2723.8,2723.4,4.48388]
[1740071356861,3.67143,2723.8,2723.4,0.812]
[1740071357045,3.67143,2723.8,2723.4,1.3350669]
[1740071357246,3.67148,2723.7,2723.4,1.3350669]
[1740071358460,3.67129,2723.9,2723.4,1.3350669]
[1740071358742,3.67135,2723.8,2723.4,5.0068769]
[1740071360196,3.67135,2723.8,2723.4,1.3350669]
[1740071360899,3.67135,2723.8,2723.5,0.18172041]
[1740071362200,7.34276,2723.8,2723.6,0.18172041]
[1740071362403,3.67135,2723.8,2723.6,0.18172041]
[1740071363883,3.67131,2723.9,2723.6,0.18172041]
[1740071364083,3.67131,2723.9,2723.4,4.4838]
[1740071364286,5.25,2724.0,2723.6,3.6715]
[1740071364464,8.92107,2724.0,2723.6,3.6715]
[1740071364983,8.92107,2724.0,2723.5,3.7084338]
[1740071364984,12.59222,2724.0,2723.5,3.7084338]
[1740071365188,8.92107,2724.0,2723.6,3.67158]
[1740071365362,8.92113,2724.0,2723.5,3.7083938]
[1740071365558,12.59229,2724.0,2723.5,4.57991597]
[1740071365763,8.92113,2724.0,2723.7,0.1820164]
[1740071366291,5.25,2724.0,2723.8,3.67121]
[1740071366475,5.25,2724.0,2723.9,4.4281]
[1740071366682,5.25,2724.0,2723.9,0.7569]
[1740071366879,8.92069,2724.3,2723.9,0.7569]
[1740071367897,8.92069,2724.3,2724.0,0.18203632]
[1740071369199,8.92069,2724.3,2723.9,4.42806]
[1740071369585,5.25,2724.3,2723.9,1.63902353]
[1740071369766,5.25,2724.3,2723.9,4.42802]
[1740071370574,5.25,2724.3,2723.9,0.7569]
[1740071370900,3.67086,2724.2,2723.8,0.72185525]
[1740071371231,3.67086,2724.2,2723.8,4.39316525]
[1740071371411,3.57086,2724.2,2723.8,4.39316525]
[1740071372191,5.25,2724.3,2723.9,3.67111]
[1740071372366,5.25,2724.3,2723.9,3.85295841]
[1740071372774,11.92063,2724.4,2723.9,3.85295841]
[1740071373103,3.67042,2724.5,2724.1,3.67087]
[1740071373883,3.67042,2724.5,2724.1,4.43937]
[1740071374210,3.67042,2724.5,2724.2,0.18184841]
[1740071375081,7.3409,2724.5,2724.2,0.18184841]
[1740071375283,3.67055,2724.4,2724.2,0.18184841]
[1740071375900,7.3409,2724.5,2724.1,0.7685]
[1740071376069,4.49703,2724.3,2723.9,0.8056]
[1740071376261,4.49702,2724.3,2723.8,4.66908525]
[1740071377267,4.49702,2724.3,2723.9,0.1816748]
[1740071378392,0.8263,2724.3,2723.9,0.1816748]
[1740071378605,3.67087,2724.2,2723.9,0.1816748]
[1740071378811,8.92087,2724.2,2724.0,0.1816748]
[1740071379222,8.92377773,2724.1,2724.0,0.1816748]
[1740071380034,14.17377773,2724.1,2724.0,0.1816748]
[1740071380742,7.030717,2724.1,2724.0,0.1816748]
[1740071380942,3.67113,2724.0,2723.6,0.1816748]
[1740071381442,3.67129,2723.9,2723.6,0.1816748]
[1740071382206,5.25,2724.6,2724.2,3.67079]
[1740071382407,3.67026,2724.6,2724.1,0.7711]